bitfinex/quotes_ETHUSD_20240717
["timestamp","ask_amount","ask_price","bid_price","bid_amount"]
[1721182048955,2.3899,3492.5,3491.9,2.86375]
[1721182049108,2.3899,3492.5,3492.0,2.86366]
[1721182049316,2.86287,3493.0,3492.1,0.286366]
[1721182049317,5.16837,3493.0,3492.1,0.286366]
[1721182049708,2.86296,3492.9,3492.2,0.10900561]
[1721182050005,5.72652,3492.6,3492.3,0.1089875]
[1721182050244,5.72652,3492.6,3491.3,5.72424]
[1721182050245,2.86326,3492.6,3491.6,2.864]
[1721182050464,2.86326,3492.6,3492.4,0.10897577]
[1721182050748,2.86326,3492.6,3491.6,2.864]
[1721182050924,2.86326,3492.6,3491.6,3.722817]
[1721182051100,2.86326,3492.6,3491.7,0.10902438]
[1721182051619,5.16854,3492.8,3491.7,2.97294438]
[1721182052123,2.3055,3492.8,3492.0,2.86368]
[1721182052641,2.3055,3492.8,3492.1,0.10897107]
[1721182053003,5.8628,3493.1,3492.1,3.55622018]
[1721182053004,3.0,3493.1,3492.1,3.55622018]
[1721182053233,5.3029,3493.2,3492.4,2.86329]
[1721182053409,2.3029,3493.2,3492.4,2.86329]
[1721182053614,3.0,3493.1,3492.5,0.10889543]
[1721182053820,2.3479,3493.9,3492.5,2.97216543]
[1721182054035,2.3479,3493.9,3492.9,2.86288]
[1721182054412,5.21004,3493.9,3493.0,0.10883201]
[1721182055427,5.21004,3493.9,3493.0,2.97169201]
[1721182055428,2.3479,3493.9,3493.0,2.97169201]
[1721182055715,2.3479,3493.9,3493.0,3.55516421]
[1721182055943,2.3479,3493.9,3493.0,2.97169201]
[1721182055944,5.21003,3493.9,3493.0,2.97169201]
[1721182056454,3.0,3493.8,3493.0,2.97169201]
[1721182056607,2.86231,3493.7,3493.0,0.10883201]
[1721182056807,2.8626,3493.4,3492.2,2.86351]
[1721182057009,3.0,3493.3,3493.1,0.10509516]
[1721182057207,5.86262,3493.3,3492.3,2.86343]
[1721182057445,5.86262,3493.3,3493.2,0.10492236]
[1721182057653,3.0,3493.3,3492.4,2.86335]
[1721182057826,3.0,3493.4,3493.2,0.10492236]
[1721182058143,2.2778,3493.5,3492.4,2.4494]
[1721182058370,2.2778,3493.5,3493.3,0.10491064]
[1721182058650,2.2778,3493.5,3493.4,0.10489891]
[1721182058948,2.2778,3493.5,3492.9,2.86294]
[1721182058949,2.50558,3493.5,3492.9,2.86294]
[1721182059133,3.0,3494.2,3492.6,1.7]
[1721182059134,2.4215,3494.1,3493.4,0.10489891]
[1721182059336,2.4215,3494.1,3493.3,2.86261]
[1721182059663,2.4215,3494.1,3493.4,0.10489891]
[1721182059861,2.4215,3494.1,3493.4,2.96742891]
[1721182060044,3.03920583,3494.4,3493.4,2.96742891]
[1721182060244,0.83222658,3494.3,3493.4,2.96742891]
[1721182060417,2.4215,3494.5,3493.7,2.86226]
[1721182060816,2.4215,3494.5,3493.8,0.10485203]
[1721182061666,2.4215,3494.5,3493.8,2.96705203]
[1721182062017,5.26061,3494.9,3493.9,2.86211]
[1721182062219,5.26061,3494.9,3493.9,2.96695031]
[1721182062529,0.526061,3494.8,3493.9,2.96695031]
[1721182062856,2.3993,3494.9,3493.9,2.96695031]
[1721182063052,2.8614,3494.8,3493.9,0.10484031]
[1721182063349,2.8614,3494.8,3493.8,2.86221]
[1721182063350,3.0,3494.7,3493.8,2.86221]
[1721182063564,5.86148,3494.7,3494.0,0.10468992]
[1721182063750,5.86148,3494.7,3493.9,0.10467614]
[1721182063919,0.826078,3494.6,3494.1,0.10465271]
[1721182064266,0.826078,3494.6,3494.2,0.10464099]
[1721182064564,0.826078,3494.6,3493.6,2.86237]
[1721182064711,0.826078,3494.6,3493.5,1.7]
[1721182064712,2.86164,3494.5,3494.3,0.10462927]
[1721182064918,2.86164,3494.5,3493.5,1.7]
[1721182065160,0.9549198,3494.4,3493.5,1.7]
[1721182065520,0.9549198,3494.4,3493.6,0.1047113]
[1721182066042,0.9549198,3494.4,3493.6,2.9670513]
[1721182066428,0.9549198,3494.4,3493.6,0.1047113]
[1721182068239,3.8166598,3494.4,3493.6,0.1047113]
[1721182068467,3.61223778,3494.3,3493.6,0.1047113]
[1721182069428,0.75043778,3494.3,3493.6,0.1047113]
[1721182069659,3.8166398,3494.4,3493.6,0.1047113]
[1721182069852,2.86182,3494.3,3493.6,0.1047113]
[1721182070055,2.3287,3494.2,3493.3,2.86261]
[1721182070262,2.3287,3494.2,3493.7,0.10449394]
[1721182070454,2.3287,3494.2,3493.3,2.86261]
[1721182070655,2.86211,3494.0,3493.8,0.10448222]
[1721182070958,0.90071598,3494.1,3493.0,5.72286]
[1721182071158,2.3287,3494.2,3493.0,5.72286]
[1721182071331,2.3287,3494.2,3493.1,0.10456427]
[1721182071669,2.86213,3493.9,3493.1,0.10456427]
[1721182072758,2.86227,3493.8,3493.1,0.10456427]
[1721182073234,2.86209,3494.0,3493.1,0.10456427]
[1721182073437,3.967328,3494.0,3493.1,2.96728427]
[1721182073652,3.967328,3494.0,3493.1,0.10456427]
[1721182073952,2.86213,3493.9,3493.1,0.10456427]
[1721182074145,2.86213,3493.9,3493.1,2.96734427]
[1721182074349,2.86221,3493.8,3493.1,0.10456427]
[1721182074529,2.2676,3493.5,3493.1,0.10456427]
[1721182074938,2.2676,3493.5,3493.0,2.86]
[1721182075156,2.2676,3493.5,3493.2,0.10108933]
[1721182075363,2.2676,3493.5,3493.0,2.86]
[1721182075364,2.2676,3493.5,3493.1,0.10110105]
[1721182075562,2.2676,3493.5,3493.3,0.10107761]
[1721182075771,2.2676,3493.5,3493.2,0.10108933]
[1721182075973,2.86221,3493.8,3493.4,0.10106588]
[1721182076270,2.86229,3493.7,3493.5,0.10105416]
[1721182076447,2.86229,3493.7,3493.0,2.86]
[1721182076775,2.86229,3493.7,3493.6,0.10104244]
[1721182076950,2.86239,3493.6,3493.0,2.86]
[1721182077477,2.86239,3493.6,3493.1,0.10110105]
[1721182077686,2.86239,3493.6,3493.0,2.86]
[1721182077687,0.63886069,3493.5,3493.0,2.86]
[1721182077881,0.63886069,3493.5,3493.2,0.10108933]
[1721182078179,0.63886069,3493.5,3493.0,2.86]
[1721182078380,0.63886069,3493.5,3493.3,0.10107761]
[1721182078678,0.63886069,3493.5,3493.4,0.10106588]
[1721182078879,0.63886069,3493.5,3493.0,2.86]
[1721182079198,2.86239,3493.6,3493.0,2.86]
[1721182079199,2.86239,3493.6,3493.4,0.10106588]
[1721182079388,2.86239,3493.6,3493.0,2.86]
[1721182079389,2.86245,3493.5,3493.0,2.86]
[1721182080177,2.86254,3493.4,3493.0,2.86]
[1721182080351,5.34048,3493.1,3493.0,2.86]
[1721182080554,5.34048,3493.1,3492.5,4.2800065]
[1721182081073,2.86288,3493.0,3492.5,4.2800065]
[1721182081378,2.4777,3493.1,3492.5,4.2800065]
[1721182081679,2.292,3493.4,3492.5,4.2800065]
[1721182081985,3.0,3493.8,3492.6,2.3565]
[1721182081986,2.8627,3493.2,3492.6,2.3565]
[1721182082409,2.86279,3493.1,3492.6,2.3565]
[1721182082700,2.86279,3493.1,3492.5,4.2800065]
[1721182082863,2.4382,3493.0,3492.5,4.2800065]
[1721182083400,2.4382,3493.3,3491.9,2.2796]
[1721182083562,2.4382,3493.3,3492.2,2.86348]
[1721182083563,2.86273,3493.2,3492.2,2.86348]
[1721182083764,5.30083,3493.3,3492.2,2.86348]
[1721182083962,2.86273,3493.2,3492.2,2.86348]
[1721182084257,5.30083,3493.3,3492.2,2.86348]
[1721182084492,2.86278,3493.1,3492.2,2.86348]
[1721182084708,2.86278,3493.1,3492.3,0.612497]
[1721182085614,5.30083,3493.3,3492.3,0.612497]
[1721182085615,2.86263,3493.3,3492.4,2.4367]
[1721182085933,2.6092,3493.7,3492.7,4.56309]
[1721182085934,2.86243,3493.6,3492.7,4.56309]
[1721182086080,5.86243,3493.6,3492.7,4.56309]
[1721182086620,5.86243,3493.6,3492.5,1.7]
[1721182086777,5.86243,3493.6,3492.7,2.86311]
[1721182087491,5.86243,3493.6,3492.6,2.86319]
[1721182088405,5.86243,3493.6,3492.5,2.88925435]
[1721182088406,5.86243,3493.6,3492.5,1.7]
[1721182088579,2.86254,3493.4,3492.5,1.7]
[1721182089015,2.86254,3493.4,3492.5,4.56326]
[1721182089215,2.86254,3493.4,3492.6,1.0475877]
[1721182089519,5.86243,3493.6,3492.6,3.9107677]
[1721182089687,5.86243,3493.6,3492.7,2.86307]
[1721182090022,5.86243,3493.6,3492.8,2.86302]
[1721182092320,3.0,3493.6,3492.8,2.86302]
[1721182092824,3.0,3493.6,3492.8,3.71039877]
[1721182093577,3.0,3493.6,3493.0,2.3873]
[1721182093783,2.86222,3493.8,3493.1,0.08797832]
[1721182094016,3.0,3493.7,3493.1,0.08797832]
[1721182094394,5.18002,3494.4,3493.5,2.86245]
[1721182094718,5.18002,3494.4,3493.6,0.08791971]
[1721182094893,5.18002,3494.4,3493.6,2.95022971]
[1721182094894,2.3183,3494.4,3493.6,2.95022971]
[1721182095085,2.3183,3494.4,3493.7,1.7]
[1721182095340,2.3183,3494.4,3493.7,1.7878522]
[1721182096220,2.3183,3494.4,3493.7,4.6501322]
[1721182097011,8.11217,3494.7,3493.7,5.14936558]
[1721182098337,8.11217,3494.7,3493.8,2.8622]
[1721182098831,8.11217,3494.7,3493.9,0.08776342]
[1721182099018,2.2507,3495.1,3494.3,2.86174]
[1721182099225,3.16740786,3495.1,3494.4,0.08767934]
[1721182100010,3.16740786,3495.1,3494.4,2.94939934]
[1721182100422,2.2507,3495.1,3494.4,2.94939934]
[1721182100627,1.19448856,3495.8,3494.5,2.86156]
[1721182100628,5.11154,3495.5,3494.5,2.86156]
[1721182100838,2.86099,3495.3,3494.5,0.08764531]
[1721182101545,2.86131,3495.0,3494.5,0.08764531]
[1721182101840,2.8614,3494.8,3493.8,7.1422165]
[1721182102005,2.8614,3494.8,3494.6,0.08758421]
[1721182102198,2.8614,3494.8,3493.8,7.1422165]
[1721182102397,2.8614,3494.8,3493.9,0.08766623]
[1721182102634,0.6594953,3494.7,3493.9,0.08766623]
[1721182102820,3.5209653,3494.7,3493.9,0.08766623]
[1721182103022,3.5209653,3494.7,3493.9,2.94978623]
[1721182103559,3.5209653,3494.7,3494.0,2.86203]
[1721182103560,0.6594953,3494.7,3494.0,2.86203]
[1721182103758,3.0,3494.9,3493.9,4.64978623]
[1721182103916,3.0,3494.9,3494.1,0.08765872]
[1721182104121,3.0,3494.9,3493.9,4.56212]
[1721182104335,3.0,3494.9,3494.2,0.08766294]
[1721182104686,0.830974,3494.8,3494.3,0.08765122]
[1721182104957,3.0,3494.9,3494.4,5.23046]
[1721182105155,3.0,3495.3,3494.4,5.3180995]
[1721182105346,2.2995,3495.5,3494.5,2.86158]
[1721182105529,5.16032,3495.5,3494.6,2.86154]
[1721182105736,5.16032,3495.5,3494.6,2.94895049]
[1721182105920,1.19448856,3496.0,3494.6,0.08741049]
[1721182106127,1.48308391,3496.2,3495.3,2.86093]
[1721182106128,2.86025,3496.2,3495.3,2.86093]
[1721182106557,2.86025,3496.2,3495.4,0.08730246]
[1721182106861,2.86016,3496.3,3495.4,0.08730246]
[1721182107037,5.2579,3496.4,3495.4,0.08730246]
[1721182107292,2.86033,3496.1,3495.4,0.08730246]
[1721182107922,3.38596,3496.3,3495.3,2.86097]
[1721182108131,3.38596,3496.3,3495.5,0.0871713]
[1721182108477,3.0,3496.2,3495.6,0.0871596]
[1721182108670,3.0,3496.2,3495.3,4.56095]
[1721182108868,0.638581,3496.2,3495.7,0.08714789]
[1721182109160,0.638581,3496.2,3495.5,2.86076]
[1721182109664,0.638581,3496.2,3495.6,2.9478896]
[1721182109822,0.638581,3496.2,3495.6,0.0871596]
[1721182110331,0.52579,3496.3,3495.5,2.86081]
[1721182110527,0.52579,3496.3,3495.7,0.08714789]
[1721182110735,3.38596,3496.3,3495.3,1.7]
[1721182110955,3.0,3496.2,3495.8,0.08713618]
[1721182111145,0.638596,3496.1,3495.4,2.86089]
[1721182111658,0.638596,3496.1,3495.3,1.7]
[1721182111659,0.638596,3496.1,3495.5,0.0871713]
[1721182111827,0.638596,3496.1,3495.3,4.56097]
[1721182112026,0.638596,3496.1,3495.6,0.0871596]
[1721182112376,0.638596,3496.1,3495.4,2.86089]
[1721182112525,3.0,3496.2,3495.7,0.08714789]
[1721182112866,3.52579,3496.3,3495.4,2.86089]
[1721182113024,3.52579,3496.3,3495.8,0.08713618]
[1721182113234,3.52579,3496.3,3495.5,2.86081]
[1721182113545,2.86033,3496.1,3495.6,0.0871596]
[1721182113933,2.86033,3496.1,3495.2,2.861]
[1721182114126,2.86033,3496.1,3495.7,0.08714789]
[1721182114367,2.86033,3496.1,3495.2,2.861]
[1721182114539,2.86033,3496.1,3495.8,0.08713618]
[1721182114725,0.9884881,3496.0,3495.2,2.861]
[1721182114927,0.9884881,3496.0,3495.9,0.08712448]
[1721182115250,0.9884881,3496.0,3495.0,2.8612]
[1721182115570,3.8488981,3496.0,3494.9,6.97246]
[1721182115787,2.86075,3495.6,3495.1,0.08721814]
[1721182116073,2.86082,3495.5,3495.2,0.08689115]
[1721182116256,2.86098,3495.3,3494.4,4.2800065]
[1721182116428,3.147078,3495.3,3494.5,1.7]
[1721182116625,2.86082,3495.5,3494.5,4.56158]
[1721182116830,2.86066,3495.7,3494.7,2.8614]
[1721182117025,2.86066,3495.7,3494.9,1.7]
[1721182117246,2.86074,3495.6,3494.9,1.7]
[1721182117566,3.38488981,3495.9,3495.0,2.3802]
[1721182117861,3.38488981,3495.9,3495.1,2.86109]
[1721182118065,2.86033,3496.1,3495.4,1.7]
[1721182118356,2.4084,3496.3,3495.4,1.7]
[1721182118565,2.86026,3496.2,3495.4,1.7]
[1721182119729,2.86026,3496.2,3495.0,2.8612]
[1721182119730,2.86048,3496.0,3495.0,2.8612]
[1721182120840,2.86048,3496.0,3495.1,2.86114]
[1721182121741,2.86048,3496.0,3494.8,4.56138]
[1721182121742,5.26857,3496.3,3495.4,2.86085]
[1721182121935,3.0,3496.2,3495.4,2.86085]
[1721182122175,3.0,3496.2,3495.2,5.72204]
[1721182122176,4.126857,3496.2,3495.2,5.72204]
[1721182122355,6.987107,3496.2,3495.3,2.86096]
[1721182122867,6.987107,3496.2,3495.4,2.86089]
[1721182123862,6.987107,3496.2,3495.5,0.08261073]
[1721182124450,3.0,3496.2,3495.5,0.08261073]
[1721182124644,8.26856,3496.3,3495.5,0.08261073]
[1721182127497,2.86024,3496.2,3495.5,0.08261073]
[1721182127783,2.86047,3496.0,3495.1,4.56113]
[1721182127951,3.146547,3495.9,3495.6,0.08256877]
[1721182128158,3.146547,3495.9,3495.1,4.56113]
[1721182128367,2.8605,3495.9,3495.7,0.08255707]
[1721182128678,2.2978,3495.7,3494.9,4.2800065]
[1721182128973,2.86099,3495.3,3494.4,7.1416465]
[1721182129190,2.86099,3495.3,3494.4,4.27908065]
[1721182129811,2.86099,3495.3,3494.3,2.86178]
[1721182129965,2.2978,3495.2,3494.3,2.86178]
[1721182130784,2.2978,3495.2,3494.0,5.72199]
[1721182130785,2.86136,3494.9,3494.0,5.72199]
[1721182131081,2.86119,3495.1,3494.1,2.86196]
[1721182131262,3.663189,3495.1,3494.1,2.86196]
[1721182131440,2.86124,3495.0,3494.1,2.86196]
[1721182131842,2.86131,3494.9,3494.1,2.86196]
[1721182132282,0.801999,3495.1,3494.3,2.86172]
[1721182133477,0.801999,3495.1,3494.4,2.86171]
[1721182134247,2.2978,3495.2,3494.5,2.86163]
[1721182136381,2.2978,3495.2,3494.3,2.86178]
[1721182136997,2.2978,3495.2,3493.9,5.9800065]
[1721182136998,2.2978,3495.2,3494.4,2.86171]
[1721182138266,2.2978,3495.2,3494.5,2.86163]
[1721182138794,2.2978,3495.2,3494.6,0.08293425]
[1721182139362,2.86082,3495.5,3494.7,4.56139]
[1721182139363,3.0,3495.4,3494.7,4.56139]
[1721182139600,2.3964,3495.5,3494.9,2.86126]
[1721182139947,2.3964,3495.5,3495.0,0.0828874]
[1721182140860,2.86091,3495.4,3494.3,2.86175]
[1721182141061,2.86091,3495.4,3494.2,4.56181]
[1721182141062,2.2664,3495.2,3495.1,0.08287568]
[1721182141266,2.2664,3495.2,3494.4,2.86171]
[1721182141474,2.2664,3495.2,3495.1,0.08287568]
[1721182141664,2.2664,3495.2,3494.4,2.86171]
[1721182141870,2.2664,3495.2,3495.1,0.08287568]
[1721182142081,2.2664,3495.2,3494.5,2.86162]
[1721182142253,2.2664,3495.2,3495.1,0.08287568]
[1721182142453,3.0,3495.4,3494.8,2.86134]
[1721182142698,2.495,3495.6,3495.1,0.08287568]
[1721182142885,2.495,3495.6,3494.8,2.86134]
[1721182143084,2.495,3495.6,3495.2,0.08286397]
[1721182143256,2.495,3495.6,3494.8,2.86134]
[1721182143465,2.495,3495.6,3495.3,0.08285226]
[1721182143771,0.835566,3495.5,3494.8,2.86134]
[1721182143971,3.0,3495.5,3494.8,2.86134]
[1721182144174,5.495,3495.6,3494.9,0.08289911]
[1721182144620,1.19448856,3496.2,3495.5,2.86081]
[1721182144914,1.19448856,3496.2,3495.3,2.2551]
[1721182144915,2.3623,3496.4,3495.6,2.94358217]
[1721182145054,2.3623,3496.4,3495.7,3.15496822]
[1721182145254,2.3623,3496.4,3495.7,3.23780869]
[1721182146596,2.3623,3496.4,3495.7,2.94345047]
[1721182148369,2.3623,3496.4,3495.7,0.08284047]
[1721182149904,2.3623,3496.4,3495.5,2.86076]
[1721182150079,2.3623,3496.4,3495.8,0.08253583]
[1721182150381,2.3623,3496.4,3495.6,2.86072]
[1721182150608,2.3623,3496.4,3495.7,2.86065]
[1721182150821,2.3623,3496.4,3495.7,2.94319753]
[1721182152665,3.58995586,3496.4,3495.7,2.94319753]
[1721182154670,3.58995586,3496.4,3495.8,2.86052]
[1721182154882,3.58995586,3496.4,3495.8,2.94305901]
[1721182157484,2.3623,3496.4,3495.8,2.94305901]
[1721182157683,2.441,3496.7,3495.9,2.86049]
[1721182157912,2.441,3496.7,3496.1,2.86027]
[1721182158319,2.441,3496.7,3496.2,0.08245399]
[1721182158514,2.441,3496.7,3496.2,2.94269399]
[1721182158707,5.3006,3497.0,3496.2,2.94269399]
[1721182158903,3.675673,3496.9,3496.2,0.08245399]
[1721182159648,2.3521,3496.8,3496.2,0.08245399]
[1721182159938,2.3521,3496.8,3495.8,2.86057]
[1721182159939,2.85983,3496.7,3495.8,2.86057]
[1721182160103,2.85983,3496.7,3496.3,0.08238977]
[1721182160330,3.7486803,3496.6,3495.8,2.86057]
[1721182160523,3.7486803,3496.6,3496.4,0.08236534]
[1721182160825,3.7486803,3496.6,3495.8,2.86057]
[1721182161320,3.7486803,3496.6,3495.9,0.08242386]
[1721182164928,2.86017,3496.3,3495.9,0.08242386]
[1721182165139,2.86017,3496.3,3495.3,2.86092]
[1721182165140,2.584017,3496.2,3495.3,2.86092]
[1721182165344,2.584017,3496.2,3496.0,0.08244717]
[1721182165345,5.444267,3496.2,3496.0,0.08244717]
[1721182165535,5.444267,3496.2,3495.1,2.86]
[1721182165712,5.444267,3496.2,3495.0,2.86122]
[1721182165713,2.4522,3495.9,3495.0,2.86122]
[1721182165916,5.3127,3495.9,3495.0,2.86122]
[1721182167497,2.86059,3495.8,3494.7,2.86146]
[1721182167699,2.86074,3495.6,3494.7,2.86146]
[1721182168531,2.86074,3495.6,3494.6,2.86155]
[1721182168777,0.5444267,3496.1,3494.8,0.08258767]
[1721182168778,2.86101,3495.3,3494.8,0.08258767]
[1721182168925,2.86124,3495.0,3494.1,2.86195]
[1721182169125,2.86124,3495.0,3494.9,0.08268736]
[1721182169328,2.86132,3494.9,3493.6,2.3134]
[1721182169538,2.86132,3494.9,3493.7,2.86229]
[1721182169539,2.86151,3494.7,3493.7,2.86229]
[1721182170203,2.86151,3494.7,3493.8,2.8622]
[1721182173511,2.86151,3494.7,3493.9,2.86209]
[1721182174610,5.28001,3494.7,3493.9,2.86209]
[1721182175076,5.28001,3494.7,3493.7,1.7]
[1721182175282,5.28001,3494.7,3493.8,2.8622]
[1721182175475,0.814133,3494.6,3493.7,1.7]
[1721182175679,2.86172,3494.4,3493.5,2.86]
[1721182175851,2.86194,3494.2,3493.5,2.86]
[1721182176053,2.8621,3494.0,3493.0,2.86284]
[1721182176252,2.8621,3494.0,3493.1,2.86278]
[1721182178801,2.4185,3494.3,3492.9,2.86293]
[1721182178802,2.4185,3494.3,3493.6,2.86234]
[1721182179448,2.4185,3494.3,3493.7,2.86228]
[1721182184013,2.4185,3494.3,3493.8,0.0830265]
[1721182184505,2.4185,3494.3,3493.7,2.86228]
[1721182184806,2.4185,3494.3,3493.9,0.08301478]
[1721182184965,2.3824,3495.2,3494.0,2.86203]
[1721182185166,2.3824,3495.2,3494.8,2.86139]
[1721182185367,5.24314,3495.6,3494.8,2.86139]
[1721182185610,0.524314,3495.5,3494.9,0.08289763]
[1721182186482,2.86101,3495.3,3494.9,0.08289763]
[1721182187016,2.86101,3495.3,3494.4,2.86169]
[1721182187167,2.324,3495.2,3495.0,0.08315661]
[1721182187369,2.324,3495.2,3494.4,2.86169]
[1721182187616,2.324,3495.2,3495.1,0.0831449]
[1721182187817,2.324,3495.2,3494.4,2.86169]
[1721182187818,3.1810274,3495.2,3494.4,2.86169]
[1721182188039,2.324,3495.2,3495.1,0.0831449]
[1721182188411,2.324,3495.2,3494.4,2.86169]
[1721182188911,2.324,3495.2,3494.5,0.08321518]
[1721182189121,5.18507,3495.2,3494.5,0.08321518]
[1721182189433,5.18507,3495.2,3494.3,2.86179]
[1721182189630,6.0421074,3495.2,3494.6,0.08320346]
[1721182189946,6.0421074,3495.2,3494.7,0.08319175]
[1721182190154,6.0421074,3495.2,3494.4,2.86172]
[1721182190335,5.18507,3495.2,3494.8,0.08318003]
[1721182190539,5.18507,3495.2,3494.4,2.86172]
[1721182190739,5.18507,3495.2,3494.9,0.08316832]
[1721182190922,5.18507,3495.2,3494.4,2.86172]
[1721182191112,5.18507,3495.2,3495.0,0.08315661]
[1721182191335,0.518507,3495.1,3494.4,2.8617]
[1721182191537,0.518507,3495.1,3494.2,2.86187]
[1721182191538,2.86116,3495.1,3494.2,2.86187]
[1721182193450,2.324,3495.2,3494.2,2.86187]
[1721182193451,2.324,3495.2,3494.3,2.86178]
[1721182194048,5.18507,3495.2,3494.3,2.86178]
[1721182194852,2.86114,3495.1,3494.3,2.86178]
[1721182195058,2.86114,3495.1,3494.3,3.434145]
[1721182196488,2.86114,3495.1,3494.3,2.86178]
[1721182196848,2.324,3495.2,3494.3,2.86178]
[1721182197048,2.86115,3495.1,3494.3,2.86178]
[1721182197653,2.86115,3495.1,3494.4,2.86172]
[1721182198099,2.324,3495.2,3494.4,2.86172]
[1721182198890,2.324,3495.2,3494.5,0.08311001]
[1721182199095,2.8949294,3495.2,3494.5,0.08311001]
[1721182199255,2.86114,3495.1,3494.5,0.08311001]
[1721182200652,5.29854,3494.8,3494.5,0.08311001]
[1721182200899,5.29854,3494.8,3493.9,2.86211]
[1721182201076,6.114533,3494.8,3493.9,2.86211]
[1721182201312,6.114533,3494.8,3494.0,0.0831001]
[1721182201498,2.8617,3494.5,3494.0,0.0831001]
[1721182201696,2.86172,3494.4,3494.0,0.0831001]
[1721182201892,2.86172,3494.4,3493.4,2.86252]
[1721182202110,3.675912,3494.4,3494.1,0.08308838]
[1721182202308,3.675912,3494.4,3493.5,2.86245]
[1721182202686,3.675912,3494.4,3493.6,0.0831629]
[1721182203520,5.28011,3494.6,3493.7,2.86229]
[1721182203852,2.86164,3494.5,3493.8,0.08320955]
[1721182204697,2.4185,3494.6,3493.8,0.08320955]
[1721182205519,5.28006,3494.6,3493.8,0.08320955]
[1721182205679,6.1758153,3494.6,3493.8,0.08320955]
[1721182206084,2.86167,3494.5,3493.8,0.08320955]
[1721182206675,2.86167,3494.5,3493.5,2.86245]
[1721182206884,2.86167,3494.5,3493.9,0.08319783]
[1721182207090,2.86167,3494.5,3493.7,2.86229]
[1721182207287,0.90374253,3494.4,3494.0,0.08318612]
[1721182207500,2.86188,3494.3,3494.0,0.08318612]
[1721182207696,2.86188,3494.3,3493.4,2.86251]
[1721182207900,2.4669,3494.3,3494.1,0.08326363]
[1721182208098,2.4669,3494.3,3493.3,7.28]
[1721182208099,2.86194,3494.2,3493.3,10.14261]
[1721182208303,3.48518125,3494.2,3493.3,10.14261]
[1721182208603,2.86205,3494.0,3493.4,0.0833632]
[1721182209119,2.2691,3493.9,3493.4,0.0833632]
[1721182209289,2.2691,3493.9,3493.0,2.86]
[1721182209290,2.86227,3493.8,3493.0,2.86286]
[1721182209498,2.2691,3493.9,3493.5,0.08335147]
[1721182209499,5.13124,3493.9,3493.5,0.08335147]
[1721182209677,5.13124,3493.9,3493.0,2.86286]
[1721182209883,5.13124,3493.9,3493.6,0.08333975]
[1721182210091,5.13124,3493.9,3493.0,2.86286]
[1721182210308,5.13124,3493.9,3493.7,0.08332803]
[1721182210503,3.13075312,3493.9,3493.0,2.86286]
[1721182210688,2.86223,3493.8,3493.0,2.86286]
[1721182210893,2.86223,3493.8,3493.1,0.08339836]
[1721182211939,1.19448856,3494.4,3493.1,0.08339836]
[1721182211940,3.46358856,3494.7,3493.7,2.86224]
[1721182212225,6.73767972,3494.6,3493.8,0.0833928]
[1721182212692,6.73767972,3494.6,3493.6,2.86236]
[1721182212891,6.73767972,3494.6,3493.9,0.08338108]
[1721182213104,3.87606972,3494.6,3493.9,0.08338108]
[1721182213315,0.73396583,3494.5,3493.3,1.7]
[1721182213522,0.73396583,3494.5,3493.8,2.8622]
[1721182214023,0.73396583,3494.5,3493.9,0.08334602]
[1721182214218,3.59561583,3494.5,3493.6,2.86232]
[1721182214555,4.37968341,3494.4,3493.6,2.86232]
[1721182214681,4.37968341,3494.4,3493.7,0.08335671]
[1721182214884,2.86211,3494.0,3493.7,0.08335671]
[1721182215189,2.86211,3494.0,3493.0,2.86281]
[1721182215190,2.3202,3493.7,3493.0,2.86281]
[1721182215387,2.3202,3493.7,3493.1,0.08342705]
[1721182215680,3.124652,3493.7,3493.1,0.08342705]
[1721182215916,2.86238,3493.6,3493.1,0.08342705]
[1721182216229,2.86238,3493.6,3493.2,0.08345516]
[1721182216450,2.86238,3493.6,3492.8,2.86301]
[1721182216660,2.86238,3493.6,3493.3,0.08344344]
[1721182216807,0.8849242,3493.5,3492.8,2.86301]
[1721182217011,2.86238,3493.6,3492.9,0.08349034]
[1721182219841,2.8621,3494.0,3493.1,2.86271]
[1721182220447,5.12692,3494.1,3493.3,2.86259]
[1721182220749,0.798875,3494.0,3493.3,2.86259]
[1721182220914,5.57417197,3494.4,3493.3,2.86259]
[1721182220915,9.66197341,3494.4,3493.4,0.08353528]
[1721182221115,8.28229,3494.4,3493.5,2.86239]
[1721182221331,8.28229,3494.4,3493.6,2.86237]
[1721182221620,8.28229,3494.4,3493.7,0.08350012]
[1721182222157,5.4205,3494.4,3493.8,2.86219]
[1721182222497,2.86155,3494.6,3493.8,2.86219]
[1721182222498,3.0,3494.5,3493.9,0.08347668]
[1721182222756,3.0,3494.3,3493.9,0.08347668]
[1721182222936,3.286155,3494.5,3493.9,0.08347668]
[1721182223142,3.0,3494.5,3493.9,0.08347668]
[1721182223453,3.0,3494.7,3493.9,2.94559668]
[1721182223744,0.586139,3494.6,3493.9,2.94559668]
[1721182224855,3.0,3494.7,3494.0,2.86199]
[1721182225083,5.4785,3495.0,3494.0,2.86199]
[1721182225425,5.4785,3495.0,3494.1,0.08344368]
[1721182225770,2.86154,3494.7,3494.1,0.08344368]
[1721182225931,3.0,3494.6,3493.8,2.86216]
[1721182226140,3.0,3494.6,3493.9,2.86211]
[1721182226336,3.0,3494.6,3494.0,2.862]
[1721182226666,5.4785,3495.0,3494.2,2.86185]
[1721182226868,1.23951986,3494.9,3494.2,2.86185]
[1721182227034,4.23951986,3494.9,3494.3,0.08337085]
[1721182227240,4.23951986,3494.9,3494.2,2.86185]
[1721182227544,4.23951986,3494.9,3494.3,0.08337085]
[1721182227753,4.23951986,3494.9,3494.2,2.86185]
[1721182227966,2.86115,3495.1,3494.3,2.86176]
[1721182228281,2.4154,3495.6,3494.8,2.86132]
[1721182228580,2.4154,3495.6,3494.4,2.3867]